bitfinex/quotes_BTCUSD_20240717
["timestamp","ask_amount","ask_price","bid_price","bid_amount"]
[1721235676421,0.155412,64345.0,64343.0,0.001]
[1721235676635,0.155412,64345.0,64342.0,0.155419]
[1721235676874,0.456815,64347.0,64338.0,0.155428]
[1721235676875,0.155421,64342.0,64338.0,0.155428]
[1721235677050,0.31083,64344.0,64341.0,0.001]
[1721235677253,0.155417,64343.0,64341.0,0.001]
[1721235677420,0.155417,64343.0,64339.0,0.155426]
[1721235677631,0.31082,64346.0,64341.0,0.155419]
[1721235677632,0.155413,64345.0,64341.0,0.155419]
[1721235677832,0.155413,64345.0,64342.0,0.001]
[1721235678008,0.155417,64343.0,64342.0,0.001]
[1721235678261,0.31083,64344.0,64340.0,0.155424]
[1721235678262,0.155414,64344.0,64340.0,0.155424]
[1721235678639,0.155414,64344.0,64338.0,0.310855]
[1721235678640,0.146,64347.0,64339.0,0.001]
[1721235678953,0.146,64347.0,64346.0,0.155409]
[1721235679157,0.0633,64352.0,64346.0,0.466228]
[1721235679366,0.01530895,64362.0,64361.0,0.776867]
[1721235682150,0.01530895,64362.0,64361.0,0.777867]
[1721235691408,0.93496395,64362.0,64361.0,0.001]
[1721235691646,1.08934569,64362.0,64361.0,0.001]
[1721235691846,1.45542815,64362.0,64361.0,0.001]
[1721235692159,1.14468615,64362.0,64361.0,0.001]
[1721235692360,0.67956241,64362.0,64361.0,0.001]
[1721235692561,0.21344941,64362.0,64357.0,0.310766]
[1721235692834,0.05534046,64361.0,64359.0,0.155377]
[1721235693048,0.05534046,64361.0,64358.0,0.15538]
[1721235694014,0.05534046,64361.0,64359.0,0.156378]
[1721235694219,0.05634046,64361.0,64360.0,0.155376]
[1721235694481,0.05634046,64361.0,64360.0,0.466128]
[1721235694691,0.05534046,64361.0,64360.0,0.466128]
[1721235695103,0.05734046,64361.0,64360.0,0.466128]
[1721235695517,0.05734046,64361.0,64360.0,0.77688]
[1721235695680,0.002,64361.0,64360.0,0.77688]
[1721235695836,0.002,64361.0,64360.0,0.466128]
[1721235696248,0.01530895,64362.0,64361.0,0.46612]
[1721235696693,0.01530895,64362.0,64361.0,0.776867]
[1721235697271,0.01530895,64362.0,64361.0,0.46612]
[1721235697472,0.07609038,64362.0,64361.0,0.46712]
[1721235698051,0.01630895,64362.0,64361.0,0.777867]
[1721235698269,0.01630895,64362.0,64361.0,0.46712]
[1721235699892,0.01630895,64362.0,64361.0,0.777867]
[1721235700292,0.01630895,64362.0,64361.0,0.46712]
[1721235700896,0.01630895,64362.0,64361.0,0.156373]
[1721235701104,0.01630895,64362.0,64361.0,0.001]
[1721235701289,0.01630895,64362.0,64361.0,0.156373]
[1721235701695,0.01630895,64362.0,64361.0,0.46712]
[1721235702145,0.01630895,64362.0,64361.0,0.777867]
[1721235702344,0.01630895,64362.0,64361.0,0.46712]
[1721235703377,0.01284367,64370.0,64362.0,0.0635]
[1721235703579,0.01284367,64370.0,64369.0,0.806462]
[1721235703841,0.01284367,64370.0,64369.0,1.52352325]
[1721235704041,0.01284367,64370.0,64369.0,1.83423125]
[1721235704244,0.01284367,64370.0,64369.0,2.14493925]
[1721235704609,0.01284367,64370.0,64369.0,2.14494204]
[1721235705297,0.01284367,64370.0,64369.0,2.12294204]
[1721235705520,0.01284367,64370.0,64369.0,2.34554204]
[1721235705703,0.01284367,64370.0,64369.0,2.36754204]
[1721235706105,0.01284367,64370.0,64369.0,2.38154204]
[1721235706507,0.01284367,64370.0,64369.0,2.39554204]
[1721235706753,0.01284367,64370.0,64369.0,2.69225004]
[1721235707187,0.01284367,64370.0,64369.0,2.72825004]
[1721235707599,0.01284367,64370.0,64369.0,2.61327574]
[1721235707810,0.01284367,64370.0,64369.0,2.76090168]
[1721235708016,0.01284367,64370.0,64369.0,2.7422432]
[1721235708187,0.01284367,64370.0,64369.0,2.7562432]
[1721235708450,0.01386893,64378.0,64373.0,1.5392]
[1721235708576,0.01386893,64378.0,64373.0,1.9412066]
[1721235708975,0.01386893,64378.0,64373.0,1.9225492]
[1721235709804,0.01386893,64378.0,64373.0,1.9455492]
[1721235710004,0.01386893,64378.0,64373.0,1.9595492]
[1721235710409,0.01386893,64378.0,64373.0,1.9735492]
[1721235710786,0.01386893,64378.0,64373.0,2.28423412]
[1721235711261,0.01386893,64378.0,64373.0,2.28422684]
[1721235711688,0.01386893,64378.0,64373.0,2.30288367]
[1721235712001,0.01386893,64378.0,64373.0,2.15527074]
[1721235712208,0.01386893,64378.0,64373.0,2.28422633]
[1721235712518,0.01386893,64378.0,64373.0,2.28422096]
[1721235713548,0.01386893,64378.0,64373.0,2.3028776]
[1721235714075,0.01386893,64378.0,64373.0,2.3640796]
[1721235714895,0.01386893,64378.0,64373.0,2.34542296]
[1721235715109,0.01386893,64378.0,64373.0,2.39542296]
[1721235718608,0.01386893,64378.0,64373.0,2.34542296]
[1721235719168,0.01386893,64378.0,64373.0,2.01173396]
[1721235720135,0.01386893,64378.0,64373.0,1.86878374]
[1721235720338,0.13940133,64374.0,64373.0,0.35951097]
[1721235720791,0.13940133,64374.0,64373.0,0.20418508]
[1721235721001,0.13940133,64374.0,64373.0,0.075202]
[1721235721002,0.66572733,64374.0,64373.0,0.075202]
[1721235721156,0.97641133,64374.0,64373.0,0.014]
[1721235721358,0.70270184,64374.0,64373.0,0.014]
[1721235721563,0.15535,64371.0,64366.0,0.15536]
[1721235721741,0.15535,64371.0,64360.0,0.310749]
[1721235721742,0.07717479,64370.0,64369.0,0.466062]
[1721235721943,0.19970133,64374.0,64373.0,0.155344]
[1721235722161,0.19970133,64374.0,64373.0,0.776722]
[1721235722366,0.19970133,64374.0,64373.0,0.466033]
[1721235722367,0.20070133,64374.0,64373.0,0.466033]
[1721235722679,0.06220133,64374.0,64373.0,1.44179274]
[1721235722868,0.06220133,64374.0,64373.0,0.976722]
[1721235723066,0.06120133,64374.0,64373.0,0.976722]
[1721235723627,0.06220133,64374.0,64373.0,0.987722]
[1721235723989,0.06220133,64374.0,64373.0,2.00628174]
[1721235724192,0.06220133,64374.0,64373.0,1.55279274]
[1721235724395,0.06220133,64374.0,64373.0,1.68177213]
[1721235724595,0.06220133,64374.0,64373.0,2.15826113]
[1721235724798,0.06220133,64374.0,64373.0,2.14726113]
[1721235725002,0.06120133,64374.0,64373.0,1.83657213]
[1721235725198,0.06120133,64374.0,64373.0,1.68477213]
[1721235725403,0.06120133,64374.0,64373.0,1.56379274]
[1721235725603,0.06120133,64374.0,64373.0,1.69276469]
[1721235725799,0.06120133,64374.0,64373.0,1.67076469]
[1721235726197,0.06120133,64374.0,64373.0,1.69876469]
[1721235727024,0.06120133,64374.0,64373.0,2.00945369]
[1721235727224,0.06120133,64374.0,64373.0,2.03245369]
[1721235728391,0.06120133,64374.0,64373.0,2.04138174]
[1721235728627,0.01386893,64378.0,64377.0,0.155334]
[1721235728860,0.01386893,64378.0,64377.0,0.93105374]
[1721235729065,0.16006893,64378.0,64377.0,0.59496959]
[1721235729267,0.16006893,64378.0,64377.0,0.90563859]
[1721235729470,0.09646893,64378.0,64377.0,0.90563859]
[1721235729675,0.01386893,64378.0,64377.0,1.06002033]
[1721235729880,0.01386893,64378.0,64377.0,1.37068933]
[1721235730082,0.09636893,64378.0,64377.0,0.15396659]
[1721235730288,0.62616593,64378.0,64377.0,0.025]
[1721235730494,0.93683093,64378.0,64377.0,0.025]
[1721235730689,0.97990934,64378.0,64377.0,0.025]
[1721235731122,1.49495608,64378.0,64377.0,0.025]
[1721235731540,1.49578608,64378.0,64377.0,0.025]
[1721235731752,1.49578608,64378.0,64377.0,0.014]
[1721235732092,1.49578608,64378.0,64367.0,0.000913]
[1721235732093,0.609369,64368.0,64367.0,0.000913]
[1721235732324,0.65244741,64368.0,64367.0,0.000913]
[1721235734289,0.65244741,64368.0,64367.0,0.007913]
[1721235734693,0.65244741,64368.0,64367.0,0.011913]
[1721235734694,1.47825515,64368.0,64367.0,0.011913]
[1721235734925,1.42825515,64368.0,64367.0,0.011913]
[1721235735537,1.42825515,64368.0,64367.0,0.007913]
[1721235735891,1.43125515,64368.0,64367.0,0.007913]
[1721235736289,1.43125515,64368.0,64367.0,0.000913]
[1721235738586,1.79196815,64368.0,64367.0,0.000913]
[1721235739294,1.91529813,64368.0,64367.0,0.000913]
[1721235739568,1.79196815,64368.0,64367.0,0.000913]
[1721235740272,0.18937841,64368.0,64367.0,0.000913]
[1721235740571,0.003,64368.0,64367.0,0.46699]
[1721235741178,0.003,64368.0,64367.0,0.156272]
[1721235741353,0.003,64368.0,64367.0,0.46699]
[1721235741757,0.003,64368.0,64367.0,0.156272]
[1721235742135,0.003,64368.0,64367.0,0.46699]
[1721235742337,0.003,64368.0,64367.0,0.777708]
[1721235743487,0.003,64368.0,64367.0,1.088426]
[1721235744127,0.003,64368.0,64367.0,1.92202574]
[1721235744330,0.003,64368.0,64367.0,2.05101855]
[1721235744744,0.01469893,64378.0,64377.0,0.776672]
[1721235745142,0.01469893,64378.0,64377.0,1.087341]
[1721235746130,0.01469893,64378.0,64377.0,1.24172274]
[1721235746756,0.01469893,64378.0,64377.0,1.85406312]
[1721235746915,0.01469893,64378.0,64377.0,1.85405776]
[1721235748238,0.01469893,64378.0,64377.0,1.23030561]
[1721235748657,0.09187372,64378.0,64377.0,0.60896761]
[1721235748868,0.01469893,64378.0,64377.0,0.466003]
[1721235749106,0.01469893,64378.0,64377.0,0.790672]
[1721235749445,0.01469893,64378.0,64377.0,0.480003]
[1721235749653,0.01469893,64378.0,64377.0,0.790672]
[1721235749826,0.01469893,64378.0,64377.0,0.818672]
[1721235750164,0.01469893,64378.0,64377.0,0.94764873]
[1721235750587,0.01469893,64378.0,64377.0,1.41269947]
[1721235750812,0.01469893,64378.0,64377.0,1.91299947]
[1721235751334,0.01469893,64378.0,64377.0,2.24666847]
[1721235751469,0.01469893,64378.0,64377.0,1.93599947]
[1721235751673,0.01469893,64378.0,64377.0,2.24666847]
[1721235752842,0.01469893,64378.0,64377.0,2.30945784]
[1721235755794,0.01469893,64378.0,64377.0,2.30945671]
[1721235756201,0.01469893,64378.0,64377.0,2.18049174]
[1721235756406,0.01469893,64378.0,64377.0,2.30945589]
[1721235757418,0.01469893,64378.0,64377.0,2.30945521]
[1721235758567,0.01469893,64378.0,64377.0,2.35028821]
[1721235759006,0.01469893,64378.0,64377.0,2.35028577]
[1721235759241,0.01469893,64378.0,64377.0,1.62824777]
[1721235759616,0.01469893,64378.0,64377.0,1.87611677]
[1721235759834,0.01469893,64378.0,64377.0,0.98846603]
[1721235760992,0.01469893,64378.0,64377.0,1.14284777]
[1721235761166,0.01469893,64378.0,64377.0,1.45351677]
[1721235762028,0.01469893,64378.0,64377.0,1.32455574]
[1721235762232,0.01469893,64378.0,64377.0,1.45352157]
[1721235762561,0.01469893,64378.0,64377.0,1.67612157]
[1721235763060,0.01469893,64378.0,64377.0,1.87612157]
[1721235763491,0.01469893,64378.0,64377.0,1.89912157]
[1721235763899,0.01469893,64378.0,64377.0,2.20979057]
[1721235764106,0.01469893,64378.0,64377.0,1.89912157]
[1721235764920,0.01469893,64378.0,64377.0,2.35919057]
[1721235765133,0.01469893,64378.0,64377.0,2.35918971]
[1721235765526,0.01469893,64378.0,64377.0,2.35918778]
[1721235767510,0.01469893,64378.0,64377.0,2.76985678]
[1721235767682,0.01469893,64378.0,64377.0,2.81985678]
[1721235768249,0.01469893,64378.0,64377.0,2.81983965]
[1721235769353,0.01469893,64378.0,64377.0,2.76983965]
[1721235769553,0.01469893,64378.0,64377.0,3.01325852]
[1721235770056,0.01469893,64378.0,64377.0,2.96325852]
[1721235771236,0.01469893,64378.0,64377.0,3.01325852]
[1721235771492,0.01469893,64378.0,64377.0,3.07773492]
[1721235772421,0.01469893,64378.0,64377.0,3.07773325]
[1721235772591,0.01469893,64378.0,64377.0,3.02773325]
[1721235772815,0.01469893,64378.0,64377.0,3.07773325]
[1721235773008,0.01469893,64378.0,64377.0,3.02773325]
[1721235773410,0.01469893,64378.0,64377.0,3.07773325]
[1721235773789,0.01469893,64378.0,64377.0,3.02773325]
[1721235774423,0.01464893,64378.0,64377.0,3.02773325]
[1721235774580,0.01464893,64378.0,64377.0,2.71336668]
[1721235774933,0.01464893,64378.0,64377.0,3.06373141]
[1721235775120,0.01464893,64378.0,64377.0,3.01373141]
[1721235775286,0.01464893,64378.0,64377.0,3.04973141]
[1721235775667,0.01464893,64378.0,64377.0,2.99973141]
[1721235775801,0.01464893,64378.0,64377.0,3.06373141]
[1721235776006,0.01464893,64378.0,64377.0,3.01373141]
[1721235776228,0.01464893,64378.0,64377.0,3.0137317]
[1721235776432,0.03048197,64379.0,64378.0,1.397992]
[1721235776672,0.03048197,64379.0,64378.0,1.9622117]
[1721235776871,0.03048197,64379.0,64378.0,2.0622117]
[1721235777030,0.03048197,64379.0,64378.0,2.3728767]
[1721235777617,0.03048197,64379.0,64378.0,2.17945764]
[1721235777862,0.03048197,64379.0,64378.0,2.38687653]
[1721235778059,0.03048197,64379.0,64378.0,2.40087653]
[1721235780421,0.03048197,64379.0,64378.0,2.09021153]
[1721235780621,0.03048197,64379.0,64378.0,1.70337374]
[1721235780822,0.03048197,64379.0,64378.0,2.09022167]
[1721235783191,0.03048197,64379.0,64378.0,2.09020868]
[1721235783615,0.03048197,64379.0,64378.0,1.70337374]
[1721235783817,0.03048197,64379.0,64378.0,2.09021216]
[1721235784425,0.03048197,64379.0,64378.0,2.13657408]
[1721235785587,0.03048197,64379.0,64378.0,2.43453978]
[1721235786209,0.03048197,64379.0,64378.0,2.43454401]
[1721235786402,0.03048197,64379.0,64378.0,2.74520901]
[1721235786920,0.03048197,64379.0,64378.0,2.79520901]
[1721235787322,0.03048197,64379.0,64378.0,2.87150901]
[1721235787571,0.03048197,64379.0,64378.0,2.9876118]
[1721235787744,0.03048197,64379.0,64378.0,2.87150901]
[1721235787942,0.01692829,64380.0,64378.0,2.87150901]
[1721235787943,0.01692829,64380.0,64379.0,1.39797]
[1721235788083,0.01692829,64380.0,64379.0,2.90988201]
[1721235788287,0.0498315,64388.0,64385.0,0.25]
[1721235788502,0.0498315,64388.0,64385.0,2.25772901]
[1721235788703,0.0498315,64388.0,64385.0,3.18962201]
[1721235789153,0.0498315,64388.0,64385.0,3.25332201]
[1721235789404,0.03367591,64396.0,64389.0,0.360612]
[1721235789609,0.03367591,64396.0,64391.0,0.205301]
[1721235789832,0.03367591,64396.0,64394.0,0.976467]
[1721235790085,0.03367591,64396.0,64394.0,2.89366765]
[1721235790272,0.03367591,64396.0,64394.0,2.91666765]
[1721235790629,0.03367591,64396.0,64394.0,2.97966765]
[1721235791226,0.03367591,64396.0,64394.0,3.34025465]
[1721235791395,0.00335555,64402.0,64399.0,0.344281]
[1721235791606,0.00335555,64402.0,64401.0,0.665831]
[1721235791860,0.00335555,64402.0,64401.0,1.70127065]
[1721235792064,0.00335555,64402.0,64401.0,2.91648665]
[1721235792396,0.00335555,64402.0,64401.0,2.62219807]
[1721235792523,0.0038039,64421.0,64420.0,1.286617]
[1721235792728,0.0038039,64421.0,64420.0,1.44099874]
[1721235792911,0.0038039,64421.0,64420.0,1.56988338]
[1721235793715,0.0038039,64421.0,64420.0,1.36988338]
[1721235793925,0.1454039,64421.0,64420.0,0.12888464]
[1721235794126,0.1454039,64421.0,64415.0,0.310483]
[1721235794127,0.0785,64420.0,64415.0,0.310483]
[1721235794331,0.07843325,64420.0,64416.0,0.1288972]
[1721235794526,0.07843325,64420.0,64413.0,0.310492]
[1721235794527,0.0631,64419.0,64417.0,0.1288972]
[1721235794734,0.310472,64418.0,64404.0,0.04643793]
[1721235794974,0.310472,64418.0,64402.0,0.0696569]
[1721235794975,0.0663,64408.0,64406.0,0.12890731]
[1721235795182,0.0663,64408.0,64407.0,0.12890731]
[1721235795183,0.53208,64408.0,64407.0,0.12890731]
[1721235795561,0.15527,64404.0,64399.0,0.155281]
[1721235795914,0.0619,64402.0,64400.0,0.12893126]
[1721235796121,0.217176,64402.0,64401.0,0.12893126]
[1721235796233,0.0619,64402.0,64401.0,0.12893126]
[1721235797096,0.0619,64402.0,64401.0,0.59476226]
[1721235797299,0.14,64402.0,64401.0,0.90531626]
[1721235798343,0.14,64402.0,64401.0,0.776385]
[1721235798546,0.14,64402.0,64401.0,0.9133159]
[1721235799280,0.0623,64409.0,64408.0,0.7763]
[1721235799427,0.10904773,64409.0,64408.0,0.15526]
[1721235799629,0.083,64408.0,64407.0,0.155262]
[1721235799949,0.083,64408.0,64407.0,0.465787]
[1721235800331,0.083,64408.0,64407.0,1.24121874]
[1721235800735,0.155232,64420.0,64416.0,0.15524]
[1721235801070,0.05098739,64419.0,64418.0,0.155236]
[1721235801213,0.0038039,64421.0,64419.0,0.310467]
[1721235801418,0.0038039,64421.0,64420.0,0.465693]
[1721235801619,0.0038039,64421.0,64420.0,1.24099874]
[1721235801919,0.0038039,64421.0,64420.0,0.465693]
[1721235802758,0.0038039,64421.0,64420.0,0.776155]
[1721235803401,0.0038039,64421.0,64420.0,1.086617]
[1721235803518,0.0038039,64421.0,64420.0,1.59288973]
[1721235804411,0.0038039,64421.0,64420.0,0.90504599]
[1721235804587,0.0038039,64421.0,64420.0,0.93053674]
[1721235804793,0.0038039,64421.0,64420.0,1.0684254]
[1721235804995,0.0038039,64421.0,64420.0,1.3788874]
[1721235805197,0.0038039,64421.0,64420.0,0.155231]
[1721235805441,0.0038039,64421.0,64420.0,0.167231]
[1721235805609,0.0871039,64421.0,64420.0,0.025]
[1721235805814,0.1536039,64421.0,64420.0,0.025]
[1721235805958,0.3088319,64421.0,64420.0,0.025]
[1721235806159,0.1536039,64421.0,64420.0,0.025]
[1721235807049,0.1536039,64421.0,64420.0,0.039]
[1721235807808,0.1536039,64421.0,64420.0,0.194231]
[1721235808356,0.1536039,64421.0,64420.0,0.815155]
[1721235808357,0.0871039,64421.0,64420.0,0.815155]
[1721235809131,0.0871039,64421.0,64420.0,0.504693]
[1721235809328,0.0871039,64421.0,64420.0,0.815155]
[1721235810107,0.0038039,64421.0,64420.0,0.815155]
[1721235811354,0.0038039,64421.0,64420.0,1.61346074]
[1721235811522,0.0038039,64421.0,64420.0,1.43188549]
[1721235811943,0.0038039,64421.0,64420.0,1.30299874]
[1721235812341,0.0038039,64421.0,64420.0,1.43188308]
[1721235813210,0.0038039,64421.0,64420.0,1.40588308]
[1721235813637,0.0038039,64421.0,64420.0,1.27799874]
[1721235813807,0.0038039,64421.0,64420.0,1.40688173]
[1721235814014,0.0038039,64421.0,64420.0,1.42088173]
[1721235814884,0.0038039,64421.0,64420.0,1.24349999]
[1721235815451,0.0038039,64421.0,64420.0,1.42088173]
[1721235816610,0.0038039,64421.0,64420.0,1.39788104]
[1721235816745,0.0038039,64421.0,64420.0,1.3978811]
[1721235817647,0.0038039,64421.0,64420.0,1.3973811]
[1721235817845,0.0038039,64421.0,64420.0,1.7647811]
[1721235818579,0.0038039,64421.0,64420.0,1.6819811]
[1721235819399,0.0038039,64421.0,64420.0,1.6679811]
[1721235819635,0.0038039,64421.0,64420.0,1.53909874]
[1721235819860,0.0038039,64421.0,64420.0,1.68197849]
[1721235819979,0.0038039,64421.0,64420.0,1.97844049]
[1721235820190,0.0038039,64421.0,64420.0,1.9784404]
[1721235820413,0.0038039,64421.0,64420.0,1.6679784]
[1721235820839,0.0038039,64421.0,64420.0,1.6819784]
[1721235821247,0.0038039,64421.0,64420.0,1.53909874]
[1721235821445,0.0038039,64421.0,64420.0,1.66797888]
[1721235821744,0.0038039,64421.0,64420.0,1.68197888]
[1721235822505,0.0038039,64421.0,64420.0,0.93253514]
[1721235822916,0.3007319,64421.0,64420.0,0.15688014]
[1721235823071,0.9216459,64421.0,64420.0,0.15688014]
[1721235823296,0.9216459,64421.0,64420.0,0.028]
[1721235823297,0.6111889,64421.0,64420.0,0.028]
[1721235823498,0.67555294,64421.0,64420.0,0.028]
[1721235823799,0.67555294,64421.0,64420.0,0.014]
[1721235824041,0.67555294,64421.0,64420.0,0.028]
[1721235824277,0.67555294,64421.0,64420.0,0.014]
[1721235824568,0.67555294,64421.0,64414.0,0.155245]
[1721235824569,0.155234,64419.0,64414.0,0.155245]
[1721235824781,0.155234,64419.0,64415.0,0.12890684]
[1721235824980,0.155234,64419.0,64416.0,0.12890684]
[1721235825183,0.155234,64419.0,64413.0,0.310493]
[1721235825386,0.4559609,64421.0,64413.0,0.310493]
[1721235825387,0.1455039,64421.0,64420.0,0.01]
[1721235825628,0.52470237,64421.0,64420.0,0.01]
[1721235825778,0.67993037,64421.0,64420.0,0.01]
[1721235826390,0.67993037,64421.0,64420.0,0.023]
[1721235826579,0.67993037,64421.0,64420.0,0.013]
[1721235827136,0.67993037,64421.0,64416.0,0.012]
[1721235827137,0.52470237,64421.0,64416.0,0.012]
[1721235827249,0.155238,64417.0,64416.0,0.012]
[1721235827460,0.22397947,64417.0,64416.0,0.012]
[1721235828124,0.22397947,64417.0,64400.0,0.32920641]
[1721235828125,0.0609,64406.0,64400.0,0.32920641]
[1721235828334,0.0808,64405.0,64402.0,0.155273]
[1721235828543,0.0808,64405.0,64404.0,0.155269]
[1721235828745,0.0808,64405.0,64404.0,0.776347]
[1721235828746,0.15028467,64405.0,64404.0,0.776347]
[1721235828945,0.15028467,64405.0,64404.0,0.59473557]
[1721235829148,0.15028467,64405.0,64404.0,0.28419657]
[1721235829350,0.15028467,64405.0,64404.0,0.59473418]
[1721235829621,0.15028467,64405.0,64404.0,0.465808]
[1721235829816,0.15028467,64405.0,64404.0,0.155269]
[1721235830405,0.06948467,64405.0,64404.0,0.479808]
[1721235830610,0.06997589,64408.0,64405.0,0.155265]
[1721235830887,0.07008452,64407.0,64405.0,0.155265]
[1721235831106,0.0611,64409.0,64406.0,0.155265]
[1721235831309,0.07163686,64408.0,64406.0,0.155265]
[1721235831917,0.07163686,64408.0,64404.0,0.169269]
[1721235832127,0.155264,64407.0,64404.0,0.014]
[1721235832344,0.07163686,64406.0,64404.0,0.014]
[1721235832583,0.0611,64409.0,64405.0,0.009]
[1721235832584,0.310524,64408.0,64405.0,0.009]
[1721235832786,0.155265,64406.0,64405.0,0.009]
[1721235833000,0.30565585,64406.0,64405.0,0.009]
[1721235833198,0.30565585,64406.0,64405.0,0.013]
[1721235833604,0.30565585,64406.0,64401.0,0.155275]
[1721235833832,0.30565585,64406.0,64399.0,0.310563]
[1721235833833,0.06889085,64405.0,64399.0,0.310563]
[1721235834044,0.06889085,64404.0,64399.0,0.310563]
[1721235834265,0.06889085,64403.0,64402.0,0.155273]
[1721235835333,0.0815,64406.0,64405.0,0.465801]
[1721235835544,0.0811,64418.0,64406.0,0.0626]
[1721235835762,0.06788544,64417.0,64406.0,0.0626]
[1721235835954,0.06788544,64417.0,64413.0,0.310495]
[1721235836186,0.06788544,64417.0,64415.0,0.155241]
[1721235836391,0.06788544,64417.0,64411.0,0.310503]
[1721235836392,0.06788544,64417.0,64413.0,0.155246]
[1721235836538,0.06788544,64417.0,64414.0,0.155244]
[1721235836738,0.06788544,64417.0,64409.0,0.155256]
[1721235836739,0.155246,64414.0,64409.0,0.155256]
[1721235836941,0.1468,64412.0,64402.0,0.324544]
[1721235837141,0.236355,64410.0,64406.0,0.155264]
[1721235837357,0.0657,64412.0,64400.0,0.155278]
[1721235837358,0.1468,64408.0,64400.0,0.155278]
[1721235837590,0.155268,64405.0,64400.0,0.155278]
[1721235837732,0.30118174,64408.0,64401.0,0.155276]
[1721235837733,0.155265,64406.0,64401.0,0.155276]
[1721235838170,0.06586903,64405.0,64401.0,0.155276]
[1721235838767,0.15607479,64404.0,64400.0,0.009]
[1721235838995,0.234177,64401.0,64400.0,0.009]
[1721235839199,0.544731,64401.0,64400.0,0.009]
[1721235839603,0.544731,64401.0,64400.0,0.014]
[1721235839815,0.544731,64401.0,64400.0,0.009]
[1721235840219,0.0789,64401.0,64400.0,0.013]
[1721235840427,0.0789,64401.0,64400.0,0.168279]
[1721235840890,0.0789,64401.0,64400.0,0.163279]
[1721235841246,0.0789,64401.0,64400.0,0.473838]
[1721235841620,0.0789,64401.0,64400.0,0.163279]
[1721235842126,0.0789,64401.0,64400.0,0.473838]
[1721235842337,0.064,64404.0,64402.0,0.155273]
[1721235842545,0.064,64404.0,64400.0,0.310559]
[1721235842546,0.062,64408.0,64404.0,0.310539]
[1721235842746,0.06778769,64407.0,64400.0,0.012398]
[1721235842995,0.0777,64410.0,64401.0,0.310554]
[1721235843150,0.0777,64410.0,64408.0,0.155258]
[1721235843360,0.0777,64410.0,64407.0,0.155261]
[1721235843920,0.0777,64410.0,64406.0,0.310529]
[1721235843921,0.001,64408.0,64406.0,0.155264]
[1721235844097,0.001,64408.0,64403.0,0.310541]
[1721235844296,0.001,64408.0,64404.0,0.155269]
[1721235844501,0.001,64408.0,64407.0,0.155262]
[1721235844716,0.001,64408.0,64405.0,0.155266]
[1721235844962,0.311524,64408.0,64401.0,0.310553]
[1721235845103,0.155263,64407.0,64406.0,0.001]
[1721235845302,0.90731895,64407.0,64406.0,0.001]
[1721235845567,1.13740069,64407.0,64406.0,0.001]
[1721235845683,0.155273,64403.0,64400.0,0.007398]
[1721235847204,0.15527,64404.0,64400.0,0.007398]
[1721235848333,0.001,64403.0,64400.0,0.007398]
[1721235848737,0.15527,64404.0,64400.0,0.007398]
[1721235848945,0.15527,64404.0,64400.0,0.008398]
[1721235849135,0.15727,64404.0,64400.0,0.008398]
[1721235849580,0.15727,64404.0,64400.0,0.007398]
[1721235850564,0.06648447,64403.0,64400.0,0.007398]
[1721235850924,0.155274,64402.0,64400.0,0.007398]
[1721235851126,0.06648447,64403.0,64400.0,0.007398]
[1721235851127,0.155277,64401.0,64400.0,0.007398]
[1721235852097,0.155277,64401.0,64400.0,0.009398]
[1721235852455,0.221377,64401.0,64400.0,0.007398]
[1721235852642,0.0661,64401.0,64400.0,0.011398]
[1721235853852,0.0661,64401.0,64400.0,0.012398]
[1721235854456,0.99686674,64401.0,64400.0,0.012398]
[1721235854815,0.0661,64401.0,64400.0,0.012398]
[1721235855238,0.0661,64401.0,64400.0,0.167677]
[1721235856313,0.0661,64401.0,64400.0,0.012398]
[1721235856464,0.0661,64401.0,64400.0,0.14133955]
[1721235856670,0.68631274,64401.0,64400.0,0.14133955]
[1721235857397,0.68631274,64401.0,64400.0,0.14134171]
[1721235857801,0.76131274,64401.0,64400.0,0.14134178]
[1721235857999,1.07186674,64401.0,64400.0,0.14134178]
[1721235858785,1.49612074,64401.0,64400.0,0.012398]
[1721235859188,1.63333226,64401.0,64400.0,0.012398]
[1721235860085,1.6550249,64401.0,64400.0,0.011398]
[1721235860586,1.63533226,64401.0,64400.0,0.011398]
[1721235860788,1.63616226,64401.0,64400.0,0.011398]
[1721235861106,1.63416226,64401.0,64400.0,0.007398]
[1721235861287,1.63616226,64401.0,64400.0,0.007398]
[1721235861545,1.63716226,64401.0,64400.0,0.007398]
[1721235862044,1.94771626,64401.0,64400.0,0.007398]
[1721235862326,2.41261983,64401.0,64400.0,0.007398]
[1721235862598,2.45932712,64401.0,64400.0,0.007398]
[1721235862998,2.45732712,64401.0,64400.0,0.007398]
[1721235863126,2.45732712,64401.0,64376.0,0.003707]
[1721235863127,0.856862,64378.0,64377.0,0.002794]
[1721235863345,0.466003,64377.0,64376.0,0.000913]
[1721235863548,0.99325374,64377.0,64376.0,0.000913]
[1721235863745,0.68258474,64377.0,64376.0,0.000913]
[1721235863949,0.99325374,64377.0,64376.0,0.000913]
[1721235864997,0.99325374,64377.0,64376.0,0.006913]
[1721235866188,0.99325374,64377.0,64376.0,0.010913]
[1721235866389,0.0661,64377.0,64376.0,0.010913]
[1721235866574,0.155334,64377.0,64376.0,0.010913]
[1721235866771,0.532103,64377.0,64376.0,0.010913]
[1721235867019,1.50082274,64377.0,64376.0,0.010913]
[1721235867416,1.81149174,64377.0,64376.0,0.010913]
[1721235867617,1.94694065,64377.0,64376.0,0.010913]
[1721235867844,2.25760965,64377.0,64376.0,0.010913]
[1721235868072,2.28060965,64377.0,64376.0,0.006913]
[1721235868221,2.28060965,64377.0,64376.0,0.000913]
[1721235868222,1.96994065,64377.0,64376.0,0.000913]
[1721235868603,1.94694065,64377.0,64376.0,0.000913]
[1721235869271,1.94894065,64377.0,64376.0,0.001913]
[1721235869493,1.95094065,64377.0,64376.0,0.001913]
[1721235870045,1.94894065,64377.0,64376.0,0.001913]
[1721235870449,1.64327165,64377.0,64376.0,0.002913]
[1721235870650,0.77568474,64377.0,64376.0,0.002913]
[1721235870859,0.77568474,64377.0,64376.0,0.15825]
[1721235870860,0.0731,64377.0,64376.0,0.15825]
[1721235871056,0.0731,64377.0,64376.0,0.002913]
[1721235871486,0.228434,64377.0,64376.0,0.002913]
[1721235871653,0.69348474,64377.0,64376.0,0.002913]
[1721235871862,1.31482274,64377.0,64376.0,0.002913]